[Event "CCC-IM 2022"]
[Site "Ballerup"]
[Date "2022.05.27"]
[Round "4.1"]
[White "Ahlander, Bjorn"]
[Black "Sahl, Bjarke"]
[Result "1-0"]
[ECO "D37"]
[WhiteElo "2375"]
[BlackElo "2312"]
[Annotator "TA"]
[PlyCount "79"]
[EventDate "2022.05.25"]
[EventType "tourn"]
[EventCountry "DEN"]
[SourceTitle "playchess.com"]
[Source "ChessBase"]
[SourceQuality "1"]
[TimeControl "5400+30"]

{[%evp 14,79,35,35,54,31,52,31,25,23,34,22,17,36,19,13,46,19,16,-2,27,25,21,18,45,27,33,29,30,15,15,12,36,37,36,25,27,10,13,12,12,10,10,12,6,5,20,0,0,0,0,0,0,0,0,0,22,0,0,0,0,0,0,0,0,0,39,11]} 1. d4 {[%emt 0:00:03]} Nf6 {[%emt 0:11:53]} 2. c4 {[%emt 0:00:03]} e6 {[%emt 0:00:44]} 3. Nc3 {[%emt 0:00:03]} d5 {[%emt 0:00:06]} 4. Nf3 {[%emt 0:00:16]} Be7 {[%emt 0:01:24]} 5. Bg5 {[%emt 0:00:05]} Nbd7 {[%emt 0:05:31][%cal Bb8d7,Bd7f8,Bf8e6][%mdl 32]} 6. e3 {[%emt 0:00:17]} a6 {[%emt 0:00:34]} 7. cxd5 {[%emt 0:02:11] is the legacy move (7.Rc1).} exd5 {[%emt 0:00:23]} 8. Bd3 {[%emt 0:00:26]} Nf8 {[%emt 0:03:33] D53: Queen's Gambit Declined: 4 Bg5 Be7: Early deviations.} 9. Ne5 {[%emt 0:03:20]} Ne6 {[%emt 0:00:43]} 10. Bh4 {[%emt 0:01:05]} c6 {[%emt 0:14:46]} 11. O-O {[%emt 0:04:46]} g6 {[%emt 0:04:10] [#]} 12. f3 $146 {[%emt 0:12:38]} ({Predecessor:} 12. Qb3 O-O 13. Rad1 Ng7 14. Rfe1 Ra7 15. f3 Nf5 16. Bf2 c5 17. dxc5 Bxc5 18. Na4 {1-0 (24) Pultinevicius,P (2512)-Bonin,J (2236) Chess.com INT 2020}) 12... Nd7 {[%emt 0:11:06]} 13. Bxe7 {[%emt 0:07:56]} Qxe7 {[%emt 0:00:19]} 14. f4 {[%emt 0:00:07]} f5 {[%emt 0:13:55]} 15. Nf3 {[%emt 0:09:34]} O-O {[%emt 0:02:34]} 16. Kh1 {[%emt 0:00:07]} Nc7 {[%emt 0:01:27]} 17. Qd2 {[%emt 0:04:41]} Ne8 {[%emt 0:00:27]} 18. Ne5 {[%emt 0:02:42]} Ndf6 {[%emt 0:01:05]} 19. Qf2 {[%emt 0:02:37]} Nd6 {[%emt 0:01:03]} 20. h3 {[%emt 0:02:18]} Be6 {[%emt 0:03:28]} 21. Rg1 {[%emt 0:00:30]} Rae8 {[%emt 0:02:12]} 22. g4 {[%emt 0:05:26]} Nde4 {[%emt 0:05:13]} 23. Bxe4 {[%emt 0:00:52]} dxe4 {[%emt 0:00:45]} 24. Rac1 {[%emt 0:01:53]} Nd7 {[%emt 0:00:20]} 25. Nxd7 {[%emt 0:03:10]} Qxd7 {[%emt 0:00:05]} 26. g5 {[%emt 0:01:25]} Kf7 {[%emt 0:05:55]} 27. Kg2 {[%emt 0:02:56]} Rh8 {[%emt 0:00:41]} 28. h4 {[%emt 0:00:30]} h6 {[%emt 0:00:49]} 29. Rh1 {[%emt 0:00:25]} Qd8 {[%emt 0:00:46]} 30. b4 {[%emt 0:02:04]} Rh7 {[%emt 0:00:07]} 31. Qb2 {[%emt 0:04:23][%cal Od4d5]} hxg5 {[%emt 0:02:01]} 32. hxg5 {[%emt 0:09:47]} Reh8 {[%emt 0:00:13]} 33. Qa1 {[%emt 0:01:50]} Rh4 {[%emt 0:02:17] [#] ( -> ...Rg4+)} 34. d5 {[%emt 0:03:20] And now Rxh4 would win.} cxd5 {[%emt 0:03:21]} (34... Bxd5 $2 35. Rxh4 Rxh4 36. Nxd5 $18) 35. Ne2 {[%emt 0:00:19] Strongly threatening Rxh4. Dancing on a razor blade.} Rxh1 {[%emt 0:00:38]} 36. Rxh1 {[%emt 0:00:04]} Rxh1 {[%emt 0:00:35]} 37. Kxh1 {[%emt 0:00:34]} d4 {[%emt 0:00:35]} 38. Nxd4 {[%emt 0:01:15]} Qh8+ {[%emt 0:00:16]} 39. Kg2 {[%emt 0:00:21]} Bc4 {[%emt 0:01:14]} 40. Qc3 {[%emt 0:00:39][%mdl 32768] Weighted Error Value: White=0.06 (flawless) /Black=0.07 (flawless) . Loss on time!?} (40. Qc1 $5 {[%cal Rc1c4]} b5 41. Nc6 $11) 1-0

[Event "CCC-IM 2022"]
[Site "Ballerup"]
[Date "2022.05.27"]
[Round "4.2"]
[White "Seegert, Kristian"]
[Black "Kistrup, Nicolai"]
[Result "0-1"]
[ECO "C77"]
[WhiteElo "2209"]
[BlackElo "2306"]
[Annotator "TA"]
[PlyCount "42"]
[EventDate "2022.05.25"]
[EventType "tourn"]
[EventCountry "DEN"]
[SourceTitle "playchess.com"]
[Source "ChessBase"]
[SourceQuality "1"]
[TimeControl "5400+30"]

{[%evp 15,42,13,31,33,36,17,44,68,0,0,117,-85,-82,-78,-82,-80,-74,-78,-91,-201,-187,-194,-183,-390,-385,-602,-578,-655,-645]} 1. e4 {[%emt 0:00:53]} e5 {[%emt 0:00:29]} 2. Nf3 {[%emt 0:00:30]} Nc6 {[%emt 0:00:04]} 3. Bb5 {[%emt 0:00:46]} a6 {[%emt 0:00:26]} 4. Ba4 {[%emt 0:00:06]} Nf6 {[%emt 0:00:12]} 5. d3 {[%emt 0:00:17]} b5 {[%emt 0:00:41]} 6. Bb3 {[%emt 0:00:10]} Bc5 {[%emt 0:02:44]} 7. O-O {[%emt 0:03:21]} d6 {[%emt 0:01:32]} 8. c3 {[%emt 0:00:22]} O-O {[%emt 0:11:48] 8...h6 is the fancy move.} 9. Bg5 {[%emt 0:01:25] C78: Ruy Lopez: Archangelsk and Möller Defences.} h6 {[%emt 0:04:45]} 10. Bh4 {[%emt 0:00:13]} g5 {[%emt 0:18:37] [#]} 11. Nxg5 {[%emt 0:00:10] White is slightly better. was the old line (11.Bg3).} hxg5 {[%emt 0:01:07]} 12. Bxg5 {[%emt 0:00:06] [#] And now Bd5 would win.} Kh7 $146 {[%emt 0:24:31]} (12... Kg7 $11 {keeps the balance.}) ({Predecessor:} 12... Kg7 13. a4 Rb8 14. axb5 axb5 15. Qf3 Rh8 16. Bd5 Bd7 17. b4 Bb6 18. Na3 Qe7 {½-½ (42) Gurevich,D (2460)-Avrukh,B (2592) Chicago 2017}) 13. Bd5 $2 {[%emt 0:16:24]} (13. Qf3 $16 Kg7 14. Bd5) 13... Rg8 $1 $17 {[%emt 0:05:30]} ({But not} 13... Bd7 14. Qf3 Kg7 15. h4 $11 (15. Bh4 Rh8 $15)) 14. Bxf6 {[%emt 0:13:39]} ({Don't blunder} 14. Bxc6 $2 Rxg5 $1 15. Bxa8 Bh3 $19) 14... Qxf6 {[%emt 0:00:13]} 15. Qh5+ {[%emt 0:05:02]} Kg7 {[%emt 0:02:53]} 16. Bxc6 {[%emt 0:09:21]} Rh8 $36 {[%emt 0:08:54][%mdl 2048] Keeping White busy. Really sharp!} 17. Qxh8+ {[%emt 0:20:27]} (17. Qf3 $17 Qxf3 18. gxf3) 17... Kxh8 $19 {[%emt 0:00:06]} 18. Bxa8 {[%emt 0:00:02] [#]} Qg5 $1 {[%emt 0:00:12] Threatens to win with ...Bh3.} 19. Kh1 $2 {[%emt 0:06:56]} (19. h4 Qxh4 20. Nd2) 19... Bxf2 $1 {[%emt 0:00:19][%cal Oc8g4]} 20. Na3 {[%emt 0:01:39]} (20. Rd1 $142) 20... Qh4 {[%emt 0:00:21] ( -> ...Bg3)} 21. Rxf2 {[%emt 0:01:03]} Qxf2 {[%emt 0:00:05] Weighted Error Value: White=0.86/Black=0.17 (very precise)} 0-1

[Event "CCC-IM 2022"]
[Site "Ballerup"]
[Date "2022.05.27"]
[Round "4.3"]
[White "Rostgaard, Tobias Valentin"]
[Black "Brynell, Stellan"]
[Result "1/2-1/2"]
[ECO "D04"]
[WhiteElo "2339"]
[BlackElo "2401"]
[Annotator "TA"]
[PlyCount "121"]
[EventDate "2022.05.25"]
[EventType "tourn"]
[EventCountry "DEN"]
[SourceTitle "playchess.com"]
[Source "ChessBase"]
[SourceQuality "1"]
[TimeControl "5400+30"]

{[%evp 18,121,8,4,0,1,3,0,22,14,11,30,25,19,32,8,32,4,32,33,29,18,58,0,0,0,0,0,0,0,36,36,51,32,44,0,0,0,15,15,76,26,24,30,31,0,0,0,0,0,0,0,0,0,0,-6,0,0,0,0,2,10,2,12,12,8,77,72,60,56,58,29,64,8,12,12,13,13,13,0,0,0,0,0,0,0,0,0,0,0,0,0,0,0,0,0,0,0,0,0,0,0,0,-8,-8,-8]} 1. d4 {[%emt 0:01:01]} Nf6 {[%emt 0:00:13]} 2. Nf3 {[%emt 0:00:22]} d5 {[%emt 0:00:11]} 3. e3 {[%emt 0:00:39]} c5 {[%emt 0:00:59]} 4. c4 {[%emt 0:02:17]} e6 {[%emt 0:04:10]} 5. Nc3 {[%emt 0:00:19]} Nc6 {[%emt 0:00:25]} 6. a3 {[%emt 0:01:04]} a6 {[%emt 0:02:32]} 7. dxc5 {[%emt 0:00:31]} Bxc5 {[%emt 0:00:09]} 8. b4 {[%emt 0:00:04]} Bd6 {[%emt 0:06:07]} 9. Bb2 {[%emt 0:00:16]} O-O {[%emt 0:00:16]} 10. Rc1 {[%emt 0:00:11][%cal Rc4d5]} dxc4 {[%emt 0:10:01] D40: Queen's Gambit Declined: Semi-Tarrasch with 5 e3.} 11. Bxc4 {[%emt 0:00:16]} b5 {[%emt 0:00:06]} 12. Bd3 {[%emt 0:00:43]} Bb7 {[%emt 0:04:51]} 13. Ne4 {[%emt 0:01:47]} Nxe4 {[%emt 0:10:40]} 14. Bxe4 {[%emt 0:00:09]} Rc8 {[%emt 0:00:23]} 15. O-O {[%emt 0:00:38]} Qe7 {[%emt 0:06:57]} 16. Qe2 {[%emt 0:10:51]} Rfd8 {[%emt 0:20:27]} (16... Na5 $5 {[%cal Rb7e4]}) 17. Rfd1 {[%emt 0:00:55]} Bb8 {[%emt 0:03:22]} (17... Na5 $5) 18. Rxd8+ {[%emt 0:04:38]} Qxd8 {[%emt 0:00:17] [#]} 19. g3 $146 {[%emt 0:01:44]} ({Predecessor:} 19. Rd1 Qe7 20. Rd2 Rd8 21. Kf1 h6 22. Qd1 Rxd2 23. Qxd2 Qd6 24. Qc2 {1-0 (51) Werner,D (2380)-Knick,P Germany 1987}) 19... f5 {[%emt 0:04:27]} 20. Bb1 {[%emt 0:02:34]} ({Better is} 20. Rd1 $14 Qe7 21. Bb1) 20... Ne5 $1 $11 {[%emt 0:03:37]} 21. Rxc8 {[%emt 0:07:50]} Nxf3+ {[%emt 0:00:07]} 22. Qxf3 {[%emt 0:00:12]} Qxc8 {[%emt 0:00:05]} 23. Qd1 {[%emt 0:02:13]} Qc6 {[%emt 0:05:57][%csl Gb7][%cal Rc6g2] [#]} 24. Qd8+ {[%emt 0:03:17]} Kf7 {[%emt 0:00:02][%csl Gb7][%cal Rc6h1]} 25. e4 $1 {[%emt 0:00:28]} Bd6 {[%emt 0:03:00]} 26. Qg5 {[%emt 0:03:46]} Bf8 {[%emt 0:01:04]} 27. f3 {[%emt 0:01:09]} h6 {[%emt 0:00:19]} 28. Qe3 {[%emt 0:04:08]} Bc8 {[%emt 0:06:30]} (28... a5 $11) 29. Bd3 {[%emt 0:02:31] White is more active.} ({Much weaker is} 29. exf5 exf5 30. h3 Qe6 $11) (29. Kg2 $16) 29... Be7 {[%emt 0:01:01]} 30. exf5 {[%emt 0:01:38]} exf5 {[%emt 0:00:02]} 31. Kg2 {[%emt 0:08:12][%cal Ob2g7]} (31. Bxg7 $5 Bg5 32. f4 $11) 31... Bg5 {[%emt 0:01:11]} 32. Qe2 {[%emt 0:03:08]} Qd5 {[%emt 0:01:41]} 33. a4 {[%emt 0:03:10]} Bd7 {[%emt 0:00:01]} 34. a5 {[%emt 0:10:53]} Bc6 {[%emt 0:00:46]} 35. Bb1 {[%emt 0:01:54]} Qd2 {[%emt 0:02:18] Prevents Bc3.} 36. Kf1 {[%emt 0:04:41]} Qxe2+ {[%emt 0:00:21]} (36... Bd5 {is interesting.} 37. Bd3 Qxe2+ 38. Kxe2 g6) 37. Kxe2 {[%emt 0:00:09][%mdl 4096] Endgame KBB-KBB} Be7 {[%emt 0:01:05]} 38. Ba2+ {[%emt 0:00:34]} Ke8 {[%emt 0:00:51]} 39. Bxg7 {[%emt 0:02:00]} Bxb4 {[%emt 0:00:02]} 40. Bxh6 {[%emt 0:00:10] aiming for h4.} Bxa5 {[%emt 0:00:09]} 41. Bg7 {[%emt 0:00:22]} Bc7 {[%emt 0:00:34] [#]} (41... Bb4 $11 {keeps the balance.}) 42. h4 $1 $16 {[%emt 0:06:45][%cal Bh2h4,Bh4h5,Bh5h6][%mdl 32]} Bxg3 {[%emt 0:00:01]} 43. h5 {[%emt 0:00:04]} Bd6 $1 {[%emt 0:00:11]} 44. h6 {[%emt 0:00:05][%mdl 1024] Bd4 would kill now. White has compensation.} Bf8 {[%emt 0:00:04]} 45. f4 {[%emt 0:00:32]} (45. Ke3 $1 $14 b4 46. Kf4) 45... Ke7 {[%emt 0:04:02] The position is equal.} 46. Ke3 {[%emt 0:03:49] And now Kd4 would win.} Be8 $1 {[%emt 0:00:21]} 47. Kd4 {[%emt 0:03:46] Strongly threatening Ke5.} Bg6 {[%emt 0:00:07]} 48. Ke5 {[%emt 0:01:55]} Bh7 $1 {[%emt 0:00:06]} 49. Bd5 {[%emt 0:00:59]} b4 {[%emt 0:00:51]} 50. Bb3 {[%emt 0:00:39]} a5 {[%emt 0:00:17]} 51. Bf6+ {[%emt 0:00:43]} Ke8 {[%emt 0:01:29]} 52. Bg7 {[%emt 0:01:04] Kf6 is the strong threat.} Ke7 {[%emt 0:00:13]} 53. Bxf8+ {[%emt 0:01:48]} Kxf8 $11 {[%emt 0:00:01] KB-KB} 54. Kf6 {[%emt 0:00:09]} a4 $1 {[%emt 0:01:05]} 55. Bxa4 {[%emt 0:00:12] Intending Bb3 and mate.} Kg8 {[%emt 0:00:12]} 56. Bb3+ {[%emt 0:01:11]} Kh8 $1 {[%emt 0:00:01]} 57. Bc2 {[%emt 0:01:14]} Bg8 {[%emt 0:01:05]} 58. Bxf5 {[%emt 0:00:19] Black must now prevent Bd3.} Bh7 $1 {[%emt 0:00:48] ( -> ...Bxf5)} 59. Be6 {[%emt 0:00:41] Threatens to win with f5.} Bc2 {[%emt 0:00:08]} 60. Ke5 {[%emt 0:00:31]} b3 {[%emt 0:00:50]} 61. Bxb3 {Weighted Error Value: White=0.08 (flawless) /Black=0.08 (flawless)} 1/2-1/2

[Event "CCC-IM 2022"]
[Site "Ballerup"]
[Date "2022.05.27"]
[Round "4.4"]
[White "Jacobsen, Mikkel Manosri"]
[Black "Nielsen, Thomas Bach"]
[Result "1/2-1/2"]
[ECO "A80"]
[WhiteElo "2251"]
[BlackElo "2189"]
[Annotator "TA"]
[PlyCount "118"]
[EventDate "2022.05.25"]
[EventType "tourn"]
[EventCountry "DEN"]
[SourceTitle "playchess.com"]
[Source "ChessBase"]
[SourceQuality "1"]
[TimeControl "5400+30"]

{[%evp 13,118,0,0,-1,-2,-5,0,-1,6,-63,-56,-60,-57,-85,-51,-70,-74,-73,-77,-83,-56,-52,-37,-63,-20,-104,-109,-91,-103,-111,-85,-93,-87,-72,-46,-73,-61,-68,-63,-87,-84,-83,-63,-90,-90,-130,-143,-130,-124,-281,-285,-285,-300,-554,-543,-528,-455,-464,-404,-459,-458,-430,-174,-177,-179,-172,-165,-146,-125,-186,-125,-183,-139,-149,-116,-143,-143,-237,-237,-244,-243,-219,-123,-131,-123,-135,-8,-8,-8,-48,-8,-8,-8,-8,0,0,0,0,0,0,0,0,0,0,0,0,0]} 1. d4 {[%emt 0:00:03]} f5 {[%emt 0:05:02]} 2. Nc3 {[%emt 0:00:06]} Nf6 {[%emt 0:00:12]} 3. Bg5 {[%emt 0:00:05]} d5 {[%emt 0:00:03]} 4. Bxf6 {[%emt 0:00:05]} exf6 {[%emt 0:00:08]} 5. e3 {[%emt 0:00:38]} Be6 {[%emt 0:01:33]} 6. Qf3 {[%emt 0:00:23]} Nc6 {[%emt 0:01:04]} 7. Bd3 {[%emt 0:01:59]} Qd7 {[%emt 0:03:51]} 8. Nge2 {[%emt 0:00:09] A80: Dutch Defence: Unusual White second moves.} Nb4 {[%emt 0:01:57]} 9. Nf4 {[%emt 0:01:57]} Nxd3+ {[%emt 0:01:33] is the legacy move (9...Bf7).} 10. cxd3 {[%emt 0:02:24]} O-O-O {[%emt 0:03:49] [#]} 11. h3 $146 {[%emt 0:07:45]} (11. Nxe6 $11 Qxe6 12. O-O) ({Predecessor:} 11. Nxe6 Qxe6 12. O-O-O g6 13. Kb1 Bb4 14. Ne2 Bd6 15. h4 Rhg8 16. Nf4 Bxf4 17. Qxf4 {1-0 (48) Alonso Alvarez,A (2284)-Hernandez Leon,S (2157) Las Palmas 2019}) 11... Bf7 $15 {[%emt 0:03:09][%cal Be6f7,Bf7g6,Bg6f5][%mdl 32]} 12. g4 {[%emt 0:01:04]} g5 {[%emt 0:10:52]} 13. Nfe2 {[%emt 0:01:33]} Bg6 {[%emt 0:00:54]} 14. gxf5 Qxf5 {[%emt 0:03:05]} 15. Qxf5+ {[%emt 0:03:33]} Bxf5 {[%emt 0:00:02]} 16. e4 {[%emt 0:00:48]} dxe4 {[%emt 0:01:21]} 17. dxe4 {[%emt 0:00:07]} Bg6 {[%emt 0:04:55]} 18. h4 h5 {[%emt 0:00:48]} 19. f4 {[%emt 0:11:11]} (19. f3 $11 {remains equal.}) 19... gxf4 $17 {[%emt 0:10:18]} 20. Kf2 {[%emt 0:08:10]} ({Don't blunder} 20. Nxf4 $2 Bxe4 $1 {[%mdl 512]} 21. Rf1 (21. Nxe4 $2 Rxd4 22. Kf2 Rxe4 $19) 21... Bf5 $19) 20... Bf7 {[%emt 0:02:19]} 21. Rad1 {[%emt 0:04:38]} Be6 22. Nxf4 {[%emt 0:00:05]} Bg4 {[%emt 0:00:39]} 23. Rd3 {[%emt 0:05:19]} Bd6 {[%emt 0:04:57]} 24. Ke3 {[%emt 0:21:42]} c5 {[%emt 0:03:48]} 25. Ncd5 Kb8 $1 26. dxc5 {[%emt 0:04:08]} Bxc5+ {[%emt 0:01:49] This bishop pair is nice.} 27. Kd2 {[%emt 0:00:05]} Bd6 $1 {[%emt 0:02:08]} 28. Rf1 {[%emt 0:00:48]} f5 {[%emt 0:04:35][%cal Bf6f5,Bf5e4,Be4d3][%mdl 32]} 29. Ng6 {[%emt 0:05:19]} fxe4 {[%emt 0:00:22]} 30. Nxh8 {[%emt 0:00:20] Threatens to win with Nf7.} exd3 {[%emt 0:00:09]} 31. Nf7 {[%emt 0:00:32]} (31. Ng6 $17) 31... Rf8 $19 {[%emt 0:01:05] And now ...Be6 would win.} 32. Rf6 {[%emt 0:11:41] Prevents Be6.} Bg3 {[%emt 0:00:56]} 33. Ne3 $2 {[%emt 0:03:58]} (33. Rg6 Bxh4 34. Nd6) 33... Bxh4 {[%emt 0:03:08]} 34. Rf1 {[%emt 0:00:24]} Be6 {[%emt 0:03:28]} 35. Rh1 {[%emt 0:02:05]} Bf6 {[%emt 0:07:10]} ({But not} 35... Bxf7 $2 36. Rxh4 Bxa2 37. Rxh5 $19) 36. Nd6 {[%emt 0:00:02]} h4 {[%emt 0:00:57]} 37. Ne4 {[%emt 0:00:25]} h3 {[%emt 0:04:13]} (37... Be7 $142 38. Kxd3 Bxa2) 38. Nxf6 {[%emt 0:03:05]} Rxf6 {[%emt 0:00:02][%mdl 4096] Endgame KRB-KRN} 39. Rh2 {[%emt 0:00:44] Prevents Rf2+.} Bxa2 {[%emt 0:04:55]} 40. Rxh3 {[%emt 0:00:54]} Rd6 {[%emt 0:00:14]} 41. Nf5 {[%emt 0:01:40] [#]} (41. Nd1 $17 {keeps fighting.}) 41... Rd7 {[%emt 0:00:24]} (41... Rb6 $1 $19 42. Rh8+ Kc7 43. Rh7+ Kd8 44. Rh8+ Kd7 45. Rh7+ Kd8 46. Rh8+ Kd7 47. Rh7+ Kc6 48. Rh6+ Kc5 49. Rxb6 Kxb6) 42. Ng3 {[%emt 0:00:38]} (42. Rh4 $17 {was necessary.}) 42... Bc4 {[%emt 0:05:29]} 43. Ne4 {[%emt 0:00:12]} b6 {[%emt 0:00:25][%cal Bb7b6,Bb6b5][%mdl 32]} 44. Rh6 {[%emt 0:00:35]} Kc7 {[%emt 0:00:18]} 45. Nf6 {[%emt 0:00:53]} (45. Kc3 $17 {is a better defense.}) 45... Re7 {[%emt 0:00:45] Hoping for ...Re2+.} 46. Kc3 {[%emt 0:00:05]} b5 {[%emt 0:00:53] aiming for ...Re2.} 47. b3 {[%emt 0:00:11]} Be6 {[%emt 0:00:22]} (47... d2 $1 $19 {[%cal Rd2d1]} 48. Kxd2 Bxb3) 48. Rh5 {[%emt 0:00:24]} Kc6 {[%emt 0:00:25][%cal Ob5b4] Strongly threatening ...b4+!} 49. Re5 {[%emt 0:00:09] [#]} a6 {[%emt 0:01:00]} (49... b4+ $1 $17 50. Kd2 Kd6) 50. Ne4 $11 {[%emt 0:00:09]} Rc7 {[%emt 0:01:39] ...Kb6+ is the strong threat.} 51. Nc5 {[%emt 0:01:07]} Kd6 {[%emt 0:01:03]} 52. Rxe6+ {[%emt 0:00:07] The position is equal.} Kxc5 {[%emt 0:00:03]} 53. Rxa6 {[%emt 0:00:12] KR-KR} Rd7 {[%emt 0:00:37]} (53... d2 {with more complications.} 54. Ra1 Rh7 55. b4+ Kd5) 54. b4+ {[%emt 0:00:24]} Kd5 {[%emt 0:00:07]} 55. Kxd3 {[%emt 0:00:09]} Rh7 {[%emt 0:00:32]} 56. Rg6 {[%emt 0:00:47]} Rh3+ {[%emt 0:00:39]} 57. Kc2 {[%emt 0:00:12]} Kc4 {[%emt 0:00:10]} 58. Rg4+ {[%emt 0:00:06]} Kd5 {[%emt 0:00:05]} 59. Rg5+ {[%emt 0:00:08]} Kc4 {Whites escaped into a draw.  Weighted Error Value: White=0.25 (precise) /Black=0.24 (precise)} 1/2-1/2

[Event "CCC-IM 2022"]
[Site "Ballerup"]
[Date "2022.05.27"]
[Round "4.5"]
[White "Casper Yukun Liu"]
[Black "Kenneskog, Theodor"]
[Result "1/2-1/2"]
[ECO "E04"]
[WhiteElo "2218"]
[BlackElo "2296"]
[Annotator "TA"]
[PlyCount "112"]
[EventDate "2022.05.25"]
[EventType "tourn"]
[EventCountry "DEN"]
[SourceTitle "playchess.com"]
[Source "ChessBase"]
[SourceQuality "1"]
[TimeControl "5400+30"]

{[%evp 20,112,25,25,21,16,24,18,18,16,29,0,0,0,34,14,7,4,4,4,4,4,4,0,0,2,6,6,6,0,0,0,30,0,0,0,8,6,8,2,2,0,0,0,0,0,0,0,13,17,19,13,22,7,22,22,22,18,22,22,39,38,110,110,1812,0,0,0,1352,1235,287,0,0,0,0,0,0,0,0,0,0,0,0,0,0,0,0,0,0,0,0,0,0,0,0]} 1. d4 {[%emt 0:00:02]} d5 {[%emt 0:00:13]} 2. Nf3 {[%emt 0:00:12]} Nf6 {[%emt 0:00:06]} 3. c4 {[%emt 0:00:06]} e6 {[%emt 0:00:17]} 4. g3 {[%emt 0:00:03]} dxc4 {[%emt 0:00:20]} 5. Bg2 {[%emt 0:01:53]} c5 {[%emt 0:00:11]} 6. O-O {[%emt 0:00:21]} Nc6 {[%emt 0:00:06]} 7. dxc5 {[%emt 0:00:10]} Qxd1 {[%emt 0:00:06]} 8. Rxd1 {[%emt 0:00:07]} Bxc5 {[%emt 0:00:05]} 9. Nbd2 {[%emt 0:00:21]} c3 {[%emt 0:00:06]} 10. bxc3 {[%emt 0:00:06]} O-O {[%emt 0:00:08]} 11. Nb3 {[%emt 0:00:04]} Be7 {[%emt 0:00:06] E04: Open Catalan: 5 Nf3.} 12. Nfd4 {[%emt 0:00:04]} Nxd4 {[%emt 0:00:08]} 13. cxd4 {[%emt 0:00:21]} Nd5 {[%emt 0:00:06]} 14. Bd2 {[%emt 0:01:24]} f5 {[%emt 0:00:05]} 15. Rdc1 {[%emt 0:12:12]} b6 {[%emt 0:01:42] [#]} 16. a4 $146 {[%emt 0:03:57][%cal Ba2a4,Ba4a5][%mdl 32]} ({Predecessor:} 16. a3 Ba6 17. e3 Rfc8 18. Bb4 Kf7 19. Nd2 Rxc1+ 20. Rxc1 Rc8 21. Rxc8 Bxc8 22. Bxd5 exd5 23. Kf1 {½-½ (23) Vallejo Pons,F (2695)-Nihal,S (2576) St Petersburg 2018}) 16... Ba6 {[%emt 0:00:29]} 17. a5 {[%emt 0:12:45]} Bxe2 {[%emt 0:08:24]} 18. Bxd5 {[%emt 0:00:16]} exd5 {[%emt 0:00:07]} 19. Re1 {[%emt 0:00:12]} Bc4 {[%emt 0:00:05]} 20. Rxe7 {[%emt 0:00:06] [#] Hoping for Ra3.} Bxb3 {[%emt 0:00:06]} 21. axb6 {[%emt 0:00:13]} axb6 {[%emt 0:00:13]} 22. Rb1 {[%emt 0:00:25]} Bc4 {[%emt 0:11:51]} 23. Rxb6 {[%emt 0:00:10]} Rfe8 {[%emt 0:01:16]} 24. Rbb7 {[%emt 0:01:03]} Rxe7 {[%emt 0:00:09]} 25. Rxe7 $11 {[%emt 0:00:02][%mdl 4096] Endgame KRB-KRB} Rf8 {[%emt 0:23:50]} 26. Bb4 {[%emt 0:03:33]} h6 {[%emt 0:06:54]} 27. h4 {[%emt 0:00:05]} Rf7 {[%emt 0:00:37]} 28. Re8+ {[%emt 0:00:11]} Kh7 {[%emt 0:00:02]} 29. h5 {[%emt 0:00:54]} Bb3 {[%emt 0:07:02]} 30. f3 {[%emt 0:04:41]} Bd1 {[%emt 0:02:53]} 31. Kf2 {[%emt 0:01:27]} Rb7 {[%emt 0:00:58]} 32. Bc3 {[%emt 0:07:14]} Rc7 {[%emt 0:01:40]} 33. Re3 {[%emt 0:00:03]} Rf7 {[%emt 0:04:06]} 34. Re1 {[%emt 0:01:07]} Bb3 {[%emt 0:00:15]} 35. Bd2 {[%emt 0:10:36]} Bc4 {[%emt 0:03:31]} 36. Re6 {[%emt 0:05:34]} Rf6 {[%emt 0:02:16]} 37. Re7 {[%emt 0:00:13]} Kg8 {[%emt 0:00:03]} 38. Ke3 {[%emt 0:00:51]} f4+ {[%emt 0:11:47]} 39. gxf4 {[%emt 0:00:04]} Rf5 {[%emt 0:00:02]} 40. Re5 {[%emt 0:00:13]} Rxe5+ {[%emt 0:00:06]} (40... Rf6 $14) 41. dxe5 $14 {[%emt 0:01:06][%cal Bd4e5,Be5e6][%mdl 32] [#] Strongly threatening f5. KB-KB} Bb5 $2 {[%emt 0:00:05][%mdl 8192]} (41... Bb3 $16) 42. Kd4 $2 {[%emt 0:00:41]} ({White should play} 42. f5 $18 Be8 43. e6) 42... Be2 $11 {[%emt 0:01:30]} 43. Ke3 $2 {[%emt 0:06:31][%mdl 8192]} ({Don't play} 43. Kxd5 Bxf3+ 44. Kd6 Bxh5 $14) (43. f5 $11) 43... Bb5 $18 {[%emt 0:00:05]} 44. e6 {[%emt 0:14:20]} Be8 {[%emt 0:00:06]} 45. Kd4 $2 {[%emt 0:00:18]} ({White has to play} 45. f5 $18) 45... Bxh5 $11 {[%emt 0:00:05] The position is equal.} 46. Kxd5 {[%emt 0:00:09] Black must now prevent Kd6.} Bxf3+ {[%emt 0:00:09]} 47. Kd6 {[%emt 0:00:10] Threatens to win with e7.} Bg4 {[%emt 0:00:52]} 48. Ke5 {[%emt 0:02:24]} Kf8 {[%emt 0:02:58]} 49. f5 {[%emt 0:00:18]} Ke8 {[%emt 0:00:23]} 50. Bc3 {[%emt 0:03:02] aiming for Kf4.} h5 {[%emt 0:00:23]} 51. Be1 {[%emt 0:02:33]} Bh3 {[%emt 0:00:25]} 52. Bh4 {[%emt 0:02:01]} Bg4 {[%emt 0:00:06]} 53. Bf2 {[%emt 0:01:40]} Bh3 {[%emt 0:00:06]} 54. Bc5 {[%emt 0:00:26]} Bg4 {[%emt 0:00:34]} 55. Bd6 {[%emt 0:00:02]} Bh3 {[%emt 0:00:29]} 56. Kf4 {[%emt 0:01:37] Kg5 is the strong threat.} g6 $1 {[%emt 0:00:07] Weighted Error Value: White=0.21 (precise) /Black=0.06 (flawless)} 1/2-1/2